{"text_format":"1","workbook":"xlsx","n_sheets":3,"sheets":["Нак1","Пример","Модель"],"not_rendered":{"charts":0,"images":0,"macros":1,"external_links":0,"defined_names":12,"comments":0,"pivot_tables":0},"unopened":[],"bounds":{"document_bytes":16777216,"sheet_cells":100000,"rows_first":2000,"rows_last":500,"rows_between":2000,"halvings":0,"cell_chars":16384,"cell_head_chars":4096},"cells_cut":0,"cells_raw":0,"read":"whole","date_system":"1900"}

{"sheet":"Нак1","index":0,"n_rows":48,"n_cols":6,"rows_kept":48,"cut":false,"hidden":false,"merged":[[1,0,1,1],[0,0,0,1]]}
["Поставщик: "]
["Покупатель:",null,null,"Дата:",{"$f":"TODAY()","v":"2019-09-19"}]
["№ п/п","Товар","Кол-во по моделям","Кол-во, шт.","Цена, руб.","Сумма, руб."]
[{"$f":"ROW()-3","v":1},"Брейк трико",{"$f":"IF(ТабЧастьНакладной[[#This Row],[Товар]]=\"\",\"\",IF(LEFT(ТабЧастьНакладной[[#This Row],[Товар]]&\",\",SEARCH(\",\",ТабЧастьНакладной[[#This Row],[Товар]]&\",\")-1)=LEFT(B3,SEARCH(\",\",B3&\",\")-1),\"\",SUMIF(ТабЧастьНакладной[Товар],LEFT(ТабЧастьНакладной[[#This Row],[Товар]],SEARCH(\",\",ТабЧастьНакладной[[#This Row],[Товар]]&\",\")-1)&\"*\",ТабЧастьНакладной[Кол-во, шт.])))","v":7},null,{"$f":"VLOOKUP(ТабЧастьНакладной[[#This Row],[Товар]],Модель!$E$3:$F$953,2,0)","v":{"$error":"#N/A"}},{"$f":"ТабЧастьНакладной[[#This Row],[Кол-во, шт.]]*ТабЧастьНакладной[[#This Row],[Цена, руб.]]","v":{"$error":"#N/A"}}]
[{"$f":"ROW()-3","v":2},"Брейк трико, черный, размер 30, Штрих-код 2000003750221",{"$f":"IF(ТабЧастьНакладной[[#This Row],[Товар]]=\"\",\"\",IF(LEFT(ТабЧастьНакладной[[#This Row],[Товар]]&\",\",SEARCH(\",\",ТабЧастьНакладной[[#This Row],[Товар]]&\",\")-1)=LEFT(B4,SEARCH(\",\",B4&\",\")-1),\"\",SUMIF(ТабЧастьНакладной[Товар],LEFT(ТабЧастьНакладной[[#This Row],[Товар]],SEARCH(\",\",ТабЧастьНакладной[[#This Row],[Товар]]&\",\")-1)&\"*\",ТабЧастьНакладной[Кол-во, шт.])))","v":""},7,{"$f":"VLOOKUP(ТабЧастьНакладной[[#This Row],[Товар]],Модель!$E$3:$F$953,2,0)","v":250},{"$f":"ТабЧастьНакладной[[#This Row],[Кол-во, шт.]]*ТабЧастьНакладной[[#This Row],[Цена, руб.]]","v":1750}]
[{"$f":"ROW()-3","v":3},"Грин костюм",{"$f":"IF(ТабЧастьНакладной[[#This Row],[Товар]]=\"\",\"\",IF(LEFT(ТабЧастьНакладной[[#This Row],[Товар]]&\",\",SEARCH(\",\",ТабЧастьНакладной[[#This Row],[Товар]]&\",\")-1)=LEFT(B5,SEARCH(\",\",B5&\",\")-1),\"\",SUMIF(ТабЧастьНакладной[Товар],LEFT(ТабЧастьНакладной[[#This Row],[Товар]],SEARCH(\",\",ТабЧастьНакладной[[#This Row],[Товар]]&\",\")-1)&\"*\",ТабЧастьНакладной[Кол-во, шт.])))","v":450},null,{"$f":"VLOOKUP(ТабЧастьНакладной[[#This Row],[Товар]],Модель!$E$3:$F$953,2,0)","v":{"$error":"#N/A"}},{"$f":"ТабЧастьНакладной[[#This Row],[Кол-во, шт.]]*ТабЧастьНакладной[[#This Row],[Цена, руб.]]","v":{"$error":"#N/A"}}]
[{"$f":"ROW()-3","v":4},"Грин костюм, графит, размер 42. Штрих-код 4650105044629",{"$f":"IF(ТабЧастьНакладной[[#This Row],[Товар]]=\"\",\"\",IF(LEFT(ТабЧастьНакладной[[#This Row],[Товар]]&\",\",SEARCH(\",\",ТабЧастьНакладной[[#This Row],[Товар]]&\",\")-1)=LEFT(B6,SEARCH(\",\",B6&\",\")-1),\"\",SUMIF(ТабЧастьНакладной[Товар],LEFT(ТабЧастьНакладной[[#This Row],[Товар]],SEARCH(\",\",ТабЧастьНакладной[[#This Row],[Товар]]&\",\")-1)&\"*\",ТабЧастьНакладной[Кол-во, шт.])))","v":""},12,{"$f":"VLOOKUP(ТабЧастьНакладной[[#This Row],[Товар]],Модель!$E$3:$F$953,2,0)","v":765},{"$f":"ТабЧастьНакладной[[#This Row],[Кол-во, шт.]]*ТабЧастьНакладной[[#This Row],[Цена, руб.]]","v":9180}]
[{"$f":"ROW()-3","v":5},"Грин костюм, графит, размер 44. Штрих-код 4650105044636",{"$f":"IF(ТабЧастьНакладной[[#This Row],[Товар]]=\"\",\"\",IF(LEFT(ТабЧастьНакладной[[#This Row],[Товар]]&\",\",SEARCH(\",\",ТабЧастьНакладной[[#This Row],[Товар]]&\",\")-1)=LEFT(B7,SEARCH(\",\",B7&\",\")-1),\"\",SUMIF(ТабЧастьНакладной[Товар],LEFT(ТабЧастьНакладной[[#This Row],[Товар]],SEARCH(\",\",ТабЧастьНакладной[[#This Row],[Товар]]&\",\")-1)&\"*\",ТабЧастьНакладной[Кол-во, шт.])))","v":""},14,{"$f":"VLOOKUP(ТабЧастьНакладной[[#This Row],[Товар]],Модель!$E$3:$F$953,2,0)","v":765},{"$f":"ТабЧастьНакладной[[#This Row],[Кол-во, шт.]]*ТабЧастьНакладной[[#This Row],[Цена, руб.]]","v":10710}]
[{"$f":"ROW()-3","v":6},"Грин костюм, графит, размер 46. Штрих-код 4650105044643",{"$f":"IF(ТабЧастьНакладной[[#This Row],[Товар]]=\"\",\"\",IF(LEFT(ТабЧастьНакладной[[#This Row],[Товар]]&\",\",SEARCH(\",\",ТабЧастьНакладной[[#This Row],[Товар]]&\",\")-1)=LEFT(B8,SEARCH(\",\",B8&\",\")-1),\"\",SUMIF(ТабЧастьНакладной[Товар],LEFT(ТабЧастьНакладной[[#This Row],[Товар]],SEARCH(\",\",ТабЧастьНакладной[[#This Row],[Товар]]&\",\")-1)&\"*\",ТабЧастьНакладной[Кол-во, шт.])))","v":""},23,{"$f":"VLOOKUP(ТабЧастьНакладной[[#This Row],[Товар]],Модель!$E$3:$F$953,2,0)","v":765},{"$f":"ТабЧастьНакладной[[#This Row],[Кол-во, шт.]]*ТабЧастьНакладной[[#This Row],[Цена, руб.]]","v":17595}]
[{"$f":"ROW()-3","v":7},"Грин костюм, графит, размер 48. Штрих-код 4650105044650",{"$f":"IF(ТабЧастьНакладной[[#This Row],[Товар]]=\"\",\"\",IF(LEFT(ТабЧастьНакладной[[#This Row],[Товар]]&\",\",SEARCH(\",\",ТабЧастьНакладной[[#This Row],[Товар]]&\",\")-1)=LEFT(B9,SEARCH(\",\",B9&\",\")-1),\"\",SUMIF(ТабЧастьНакладной[Товар],LEFT(ТабЧастьНакладной[[#This Row],[Товар]],SEARCH(\",\",ТабЧастьНакладной[[#This Row],[Товар]]&\",\")-1)&\"*\",ТабЧастьНакладной[Кол-во, шт.])))","v":""},45,{"$f":"VLOOKUP(ТабЧастьНакладной[[#This Row],[Товар]],Модель!$E$3:$F$953,2,0)","v":765},{"$f":"ТабЧастьНакладной[[#This Row],[Кол-во, шт.]]*ТабЧастьНакладной[[#This Row],[Цена, руб.]]","v":34425}]
[{"$f":"ROW()-3","v":8},"Грин костюм, графит, размер 50. Штрих-код 4650105044667",{"$f":"IF(ТабЧастьНакладной[[#This Row],[Товар]]=\"\",\"\",IF(LEFT(ТабЧастьНакладной[[#This Row],[Товар]]&\",\",SEARCH(\",\",ТабЧастьНакладной[[#This Row],[Товар]]&\",\")-1)=LEFT(B10,SEARCH(\",\",B10&\",\")-1),\"\",SUMIF(ТабЧастьНакладной[Товар],LEFT(ТабЧастьНакладной[[#This Row],[Товар]],SEARCH(\",\",ТабЧастьНакладной[[#This Row],[Товар]]&\",\")-1)&\"*\",ТабЧастьНакладной[Кол-во, шт.])))","v":""},67,{"$f":"VLOOKUP(ТабЧастьНакладной[[#This Row],[Товар]],Модель!$E$3:$F$953,2,0)","v":765},{"$f":"ТабЧастьНакладной[[#This Row],[Кол-во, шт.]]*ТабЧастьНакладной[[#This Row],[Цена, руб.]]","v":51255}]
[{"$f":"ROW()-3","v":9},"Грин костюм, графит, размер 52. Штрих-код 4650105044674",{"$f":"IF(ТабЧастьНакладной[[#This Row],[Товар]]=\"\",\"\",IF(LEFT(ТабЧастьНакладной[[#This Row],[Товар]]&\",\",SEARCH(\",\",ТабЧастьНакладной[[#This Row],[Товар]]&\",\")-1)=LEFT(B11,SEARCH(\",\",B11&\",\")-1),\"\",SUMIF(ТабЧастьНакладной[Товар],LEFT(ТабЧастьНакладной[[#This Row],[Товар]],SEARCH(\",\",ТабЧастьНакладной[[#This Row],[Товар]]&\",\")-1)&\"*\",ТабЧастьНакладной[Кол-во, шт.])))","v":""},65,{"$f":"VLOOKUP(ТабЧастьНакладной[[#This Row],[Товар]],Модель!$E$3:$F$953,2,0)","v":765},{"$f":"ТабЧастьНакладной[[#This Row],[Кол-во, шт.]]*ТабЧастьНакладной[[#This Row],[Цена, руб.]]","v":49725}]
[{"$f":"ROW()-3","v":10},"Грин костюм, индиго, размер 42. Штрих-код:4650105044681",{"$f":"IF(ТабЧастьНакладной[[#This Row],[Товар]]=\"\",\"\",IF(LEFT(ТабЧастьНакладной[[#This Row],[Товар]]&\",\",SEARCH(\",\",ТабЧастьНакладной[[#This Row],[Товар]]&\",\")-1)=LEFT(B12,SEARCH(\",\",B12&\",\")-1),\"\",SUMIF(ТабЧастьНакладной[Товар],LEFT(ТабЧастьНакладной[[#This Row],[Товар]],SEARCH(\",\",ТабЧастьНакладной[[#This Row],[Товар]]&\",\")-1)&\"*\",ТабЧастьНакладной[Кол-во, шт.])))","v":""},78,{"$f":"VLOOKUP(ТабЧастьНакладной[[#This Row],[Товар]],Модель!$E$3:$F$953,2,0)","v":765},{"$f":"ТабЧастьНакладной[[#This Row],[Кол-во, шт.]]*ТабЧастьНакладной[[#This Row],[Цена, руб.]]","v":59670}]
[{"$f":"ROW()-3","v":11},"Грин костюм, индиго, размер 44. Штрих-код:4650105044698",{"$f":"IF(ТабЧастьНакладной[[#This Row],[Товар]]=\"\",\"\",IF(LEFT(ТабЧастьНакладной[[#This Row],[Товар]]&\",\",SEARCH(\",\",ТабЧастьНакладной[[#This Row],[Товар]]&\",\")-1)=LEFT(B13,SEARCH(\",\",B13&\",\")-1),\"\",SUMIF(ТабЧастьНакладной[Товар],LEFT(ТабЧастьНакладной[[#This Row],[Товар]],SEARCH(\",\",ТабЧастьНакладной[[#This Row],[Товар]]&\",\")-1)&\"*\",ТабЧастьНакладной[Кол-во, шт.])))","v":""},23,{"$f":"VLOOKUP(ТабЧастьНакладной[[#This Row],[Товар]],Модель!$E$3:$F$953,2,0)","v":765},{"$f":"ТабЧастьНакладной[[#This Row],[Кол-во, шт.]]*ТабЧастьНакладной[[#This Row],[Цена, руб.]]","v":17595}]
[{"$f":"ROW()-3","v":12},"Грин костюм, индиго, размер 46. Штрих-код:4650105044704",{"$f":"IF(ТабЧастьНакладной[[#This Row],[Товар]]=\"\",\"\",IF(LEFT(ТабЧастьНакладной[[#This Row],[Товар]]&\",\",SEARCH(\",\",ТабЧастьНакладной[[#This Row],[Товар]]&\",\")-1)=LEFT(B14,SEARCH(\",\",B14&\",\")-1),\"\",SUMIF(ТабЧастьНакладной[Товар],LEFT(ТабЧастьНакладной[[#This Row],[Товар]],SEARCH(\",\",ТабЧастьНакладной[[#This Row],[Товар]]&\",\")-1)&\"*\",ТабЧастьНакладной[Кол-во, шт.])))","v":""},12,{"$f":"VLOOKUP(ТабЧастьНакладной[[#This Row],[Товар]],Модель!$E$3:$F$953,2,0)","v":765},{"$f":"ТабЧастьНакладной[[#This Row],[Кол-во, шт.]]*ТабЧастьНакладной[[#This Row],[Цена, руб.]]","v":9180}]
[{"$f":"ROW()-3","v":13},"Грин костюм, индиго, размер 48. Штрих-код:4650105044711",{"$f":"IF(ТабЧастьНакладной[[#This Row],[Товар]]=\"\",\"\",IF(LEFT(ТабЧастьНакладной[[#This Row],[Товар]]&\",\",SEARCH(\",\",ТабЧастьНакладной[[#This Row],[Товар]]&\",\")-1)=LEFT(B15,SEARCH(\",\",B15&\",\")-1),\"\",SUMIF(ТабЧастьНакладной[Товар],LEFT(ТабЧастьНакладной[[#This Row],[Товар]],SEARCH(\",\",ТабЧастьНакладной[[#This Row],[Товар]]&\",\")-1)&\"*\",ТабЧастьНакладной[Кол-во, шт.])))","v":""},34,{"$f":"VLOOKUP(ТабЧастьНакладной[[#This Row],[Товар]],Модель!$E$3:$F$953,2,0)","v":765},{"$f":"ТабЧастьНакладной[[#This Row],[Кол-во, шт.]]*ТабЧастьНакладной[[#This Row],[Цена, руб.]]","v":26010}]
[{"$f":"ROW()-3","v":14},"Грин костюм, индиго, размер 50. Штрих-код:4650105044728",{"$f":"IF(ТабЧастьНакладной[[#This Row],[Товар]]=\"\",\"\",IF(LEFT(ТабЧастьНакладной[[#This Row],[Товар]]&\",\",SEARCH(\",\",ТабЧастьНакладной[[#This Row],[Товар]]&\",\")-1)=LEFT(B16,SEARCH(\",\",B16&\",\")-1),\"\",SUMIF(ТабЧастьНакладной[Товар],LEFT(ТабЧастьНакладной[[#This Row],[Товар]],SEARCH(\",\",ТабЧастьНакладной[[#This Row],[Товар]]&\",\")-1)&\"*\",ТабЧастьНакладной[Кол-во, шт.])))","v":""},45,{"$f":"VLOOKUP(ТабЧастьНакладной[[#This Row],[Товар]],Модель!$E$3:$F$953,2,0)","v":765},{"$f":"ТабЧастьНакладной[[#This Row],[Кол-во, шт.]]*ТабЧастьНакладной[[#This Row],[Цена, руб.]]","v":34425}]
[30,"Грин костюм, индиго, размер 50. Штрих-код:4650105044728",{"$f":"IF(ТабЧастьНакладной[[#This Row],[Товар]]=\"\",\"\",IF(LEFT(ТабЧастьНакладной[[#This Row],[Товар]]&\",\",SEARCH(\",\",ТабЧастьНакладной[[#This Row],[Товар]]&\",\")-1)=LEFT(B17,SEARCH(\",\",B17&\",\")-1),\"\",SUMIF(ТабЧастьНакладной[Товар],LEFT(ТабЧастьНакладной[[#This Row],[Товар]],SEARCH(\",\",ТабЧастьНакладной[[#This Row],[Товар]]&\",\")-1)&\"*\",ТабЧастьНакладной[Кол-во, шт.])))","v":""},null,{"$f":"VLOOKUP(ТабЧастьНакладной[[#This Row],[Товар]],Модель!$E$3:$F$953,2,0)","v":765},{"$f":"ТабЧастьНакладной[[#This Row],[Кол-во, шт.]]*ТабЧастьНакладной[[#This Row],[Цена, руб.]]","v":0}]
[{"$f":"ROW()-3","v":16},"Грин костюм, индиго, размер 52. Штрих-код:4650105044735",{"$f":"IF(ТабЧастьНакладной[[#This Row],[Товар]]=\"\",\"\",IF(LEFT(ТабЧастьНакладной[[#This Row],[Товар]]&\",\",SEARCH(\",\",ТабЧастьНакладной[[#This Row],[Товар]]&\",\")-1)=LEFT(B18,SEARCH(\",\",B18&\",\")-1),\"\",SUMIF(ТабЧастьНакладной[Товар],LEFT(ТабЧастьНакладной[[#This Row],[Товар]],SEARCH(\",\",ТабЧастьНакладной[[#This Row],[Товар]]&\",\")-1)&\"*\",ТабЧастьНакладной[Кол-во, шт.])))","v":""},32,{"$f":"VLOOKUP(ТабЧастьНакладной[[#This Row],[Товар]],Модель!$E$3:$F$953,2,0)","v":765},{"$f":"ТабЧастьНакладной[[#This Row],[Кол-во, шт.]]*ТабЧастьНакладной[[#This Row],[Цена, руб.]]","v":24480}]
[{"$f":"ROW()-3","v":17},"Дерево туника",{"$f":"IF(ТабЧастьНакладной[[#This Row],[Товар]]=\"\",\"\",IF(LEFT(ТабЧастьНакладной[[#This Row],[Товар]]&\",\",SEARCH(\",\",ТабЧастьНакладной[[#This Row],[Товар]]&\",\")-1)=LEFT(B19,SEARCH(\",\",B19&\",\")-1),\"\",SUMIF(ТабЧастьНакладной[Товар],LEFT(ТабЧастьНакладной[[#This Row],[Товар]],SEARCH(\",\",ТабЧастьНакладной[[#This Row],[Товар]]&\",\")-1)&\"*\",ТабЧастьНакладной[Кол-во, шт.])))","v":45},null,{"$f":"VLOOKUP(ТабЧастьНакладной[[#This Row],[Товар]],Модель!$E$3:$F$953,2,0)","v":{"$error":"#N/A"}},{"$f":"ТабЧастьНакладной[[#This Row],[Кол-во, шт.]]*ТабЧастьНакладной[[#This Row],[Цена, руб.]]","v":{"$error":"#N/A"}}]
[{"$f":"ROW()-3","v":18},"Дерево туника, графит, размер 44, Штрих-код 4650105277355",{"$f":"IF(ТабЧастьНакладной[[#This Row],[Товар]]=\"\",\"\",IF(LEFT(ТабЧастьНакладной[[#This Row],[Товар]]&\",\",SEARCH(\",\",ТабЧастьНакладной[[#This Row],[Товар]]&\",\")-1)=LEFT(B20,SEARCH(\",\",B20&\",\")-1),\"\",SUMIF(ТабЧастьНакладной[Товар],LEFT(ТабЧастьНакладной[[#This Row],[Товар]],SEARCH(\",\",ТабЧастьНакладной[[#This Row],[Товар]]&\",\")-1)&\"*\",ТабЧастьНакладной[Кол-во, шт.])))","v":""},1,{"$f":"VLOOKUP(ТабЧастьНакладной[[#This Row],[Товар]],Модель!$E$3:$F$953,2,0)","v":360},{"$f":"ТабЧастьНакладной[[#This Row],[Кол-во, шт.]]*ТабЧастьНакладной[[#This Row],[Цена, руб.]]","v":360}]
[{"$f":"ROW()-3","v":19},"Дерево туника, графит, размер 46, Штрих-код 4650105277362",{"$f":"IF(ТабЧастьНакладной[[#This Row],[Товар]]=\"\",\"\",IF(LEFT(ТабЧастьНакладной[[#This Row],[Товар]]&\",\",SEARCH(\",\",ТабЧастьНакладной[[#This Row],[Товар]]&\",\")-1)=LEFT(B21,SEARCH(\",\",B21&\",\")-1),\"\",SUMIF(ТабЧастьНакладной[Товар],LEFT(ТабЧастьНакладной[[#This Row],[Товар]],SEARCH(\",\",ТабЧастьНакладной[[#This Row],[Товар]]&\",\")-1)&\"*\",ТабЧастьНакладной[Кол-во, шт.])))","v":""},2,{"$f":"VLOOKUP(ТабЧастьНакладной[[#This Row],[Товар]],Модель!$E$3:$F$953,2,0)","v":360},{"$f":"ТабЧастьНакладной[[#This Row],[Кол-во, шт.]]*ТабЧастьНакладной[[#This Row],[Цена, руб.]]","v":720}]
[{"$f":"ROW()-3","v":20},"Дерево туника, графит, размер 48, Штрих-код 4650105277379",{"$f":"IF(ТабЧастьНакладной[[#This Row],[Товар]]=\"\",\"\",IF(LEFT(ТабЧастьНакладной[[#This Row],[Товар]]&\",\",SEARCH(\",\",ТабЧастьНакладной[[#This Row],[Товар]]&\",\")-1)=LEFT(B22,SEARCH(\",\",B22&\",\")-1),\"\",SUMIF(ТабЧастьНакладной[Товар],LEFT(ТабЧастьНакладной[[#This Row],[Товар]],SEARCH(\",\",ТабЧастьНакладной[[#This Row],[Товар]]&\",\")-1)&\"*\",ТабЧастьНакладной[Кол-во, шт.])))","v":""},3,{"$f":"VLOOKUP(ТабЧастьНакладной[[#This Row],[Товар]],Модель!$E$3:$F$953,2,0)","v":360},{"$f":"ТабЧастьНакладной[[#This Row],[Кол-во, шт.]]*ТабЧастьНакладной[[#This Row],[Цена, руб.]]","v":1080}]
[{"$f":"ROW()-3","v":21},"Дерево туника, графит, размер 50, Штрих-код 4650105277386",{"$f":"IF(ТабЧастьНакладной[[#This Row],[Товар]]=\"\",\"\",IF(LEFT(ТабЧастьНакладной[[#This Row],[Товар]]&\",\",SEARCH(\",\",ТабЧастьНакладной[[#This Row],[Товар]]&\",\")-1)=LEFT(B23,SEARCH(\",\",B23&\",\")-1),\"\",SUMIF(ТабЧастьНакладной[Товар],LEFT(ТабЧастьНакладной[[#This Row],[Товар]],SEARCH(\",\",ТабЧастьНакладной[[#This Row],[Товар]]&\",\")-1)&\"*\",ТабЧастьНакладной[Кол-во, шт.])))","v":""},4,{"$f":"VLOOKUP(ТабЧастьНакладной[[#This Row],[Товар]],Модель!$E$3:$F$953,2,0)","v":360},{"$f":"ТабЧастьНакладной[[#This Row],[Кол-во, шт.]]*ТабЧастьНакладной[[#This Row],[Цена, руб.]]","v":1440}]
[{"$f":"ROW()-3","v":22},"Дерево туника, графит, размер 52, Штрих-код 4650105277393",{"$f":"IF(ТабЧастьНакладной[[#This Row],[Товар]]=\"\",\"\",IF(LEFT(ТабЧастьНакладной[[#This Row],[Товар]]&\",\",SEARCH(\",\",ТабЧастьНакладной[[#This Row],[Товар]]&\",\")-1)=LEFT(B24,SEARCH(\",\",B24&\",\")-1),\"\",SUMIF(ТабЧастьНакладной[Товар],LEFT(ТабЧастьНакладной[[#This Row],[Товар]],SEARCH(\",\",ТабЧастьНакладной[[#This Row],[Товар]]&\",\")-1)&\"*\",ТабЧастьНакладной[Кол-во, шт.])))","v":""},5,{"$f":"VLOOKUP(ТабЧастьНакладной[[#This Row],[Товар]],Модель!$E$3:$F$953,2,0)","v":360},{"$f":"ТабЧастьНакладной[[#This Row],[Кол-во, шт.]]*ТабЧастьНакладной[[#This Row],[Цена, руб.]]","v":1800}]
[{"$f":"ROW()-3","v":23},"Дерево туника, графит, размер 54, Штрих-код 4650105277409",{"$f":"IF(ТабЧастьНакладной[[#This Row],[Товар]]=\"\",\"\",IF(LEFT(ТабЧастьНакладной[[#This Row],[Товар]]&\",\",SEARCH(\",\",ТабЧастьНакладной[[#This Row],[Товар]]&\",\")-1)=LEFT(B25,SEARCH(\",\",B25&\",\")-1),\"\",SUMIF(ТабЧастьНакладной[Товар],LEFT(ТабЧастьНакладной[[#This Row],[Товар]],SEARCH(\",\",ТабЧастьНакладной[[#This Row],[Товар]]&\",\")-1)&\"*\",ТабЧастьНакладной[Кол-во, шт.])))","v":""},6,{"$f":"VLOOKUP(ТабЧастьНакладной[[#This Row],[Товар]],Модель!$E$3:$F$953,2,0)","v":360},{"$f":"ТабЧастьНакладной[[#This Row],[Кол-во, шт.]]*ТабЧастьНакладной[[#This Row],[Цена, руб.]]","v":2160}]
[{"$f":"ROW()-3","v":24},"Дерево туника, графит, размер 54, Штрих-код 4650105277409",{"$f":"IF(ТабЧастьНакладной[[#This Row],[Товар]]=\"\",\"\",IF(LEFT(ТабЧастьНакладной[[#This Row],[Товар]]&\",\",SEARCH(\",\",ТабЧастьНакладной[[#This Row],[Товар]]&\",\")-1)=LEFT(B26,SEARCH(\",\",B26&\",\")-1),\"\",SUMIF(ТабЧастьНакладной[Товар],LEFT(ТабЧастьНакладной[[#This Row],[Товар]],SEARCH(\",\",ТабЧастьНакладной[[#This Row],[Товар]]&\",\")-1)&\"*\",ТабЧастьНакладной[Кол-во, шт.])))","v":""},null,{"$f":"VLOOKUP(ТабЧастьНакладной[[#This Row],[Товар]],Модель!$E$3:$F$953,2,0)","v":360},{"$f":"ТабЧастьНакладной[[#This Row],[Кол-во, шт.]]*ТабЧастьНакладной[[#This Row],[Цена, руб.]]","v":0}]
[{"$f":"ROW()-3","v":25},"Дерево туника, графит, размер 56, Штрих-код 4650105277416",{"$f":"IF(ТабЧастьНакладной[[#This Row],[Товар]]=\"\",\"\",IF(LEFT(ТабЧастьНакладной[[#This Row],[Товар]]&\",\",SEARCH(\",\",ТабЧастьНакладной[[#This Row],[Товар]]&\",\")-1)=LEFT(B27,SEARCH(\",\",B27&\",\")-1),\"\",SUMIF(ТабЧастьНакладной[Товар],LEFT(ТабЧастьНакладной[[#This Row],[Товар]],SEARCH(\",\",ТабЧастьНакладной[[#This Row],[Товар]]&\",\")-1)&\"*\",ТабЧастьНакладной[Кол-во, шт.])))","v":""},7,{"$f":"VLOOKUP(ТабЧастьНакладной[[#This Row],[Товар]],Модель!$E$3:$F$953,2,0)","v":360},{"$f":"ТабЧастьНакладной[[#This Row],[Кол-во, шт.]]*ТабЧастьНакладной[[#This Row],[Цена, руб.]]","v":2520}]
[{"$f":"ROW()-3","v":26},"Дерево туника, графит, размер 58, Штрих-код 4650105277423",{"$f":"IF(ТабЧастьНакладной[[#This Row],[Товар]]=\"\",\"\",IF(LEFT(ТабЧастьНакладной[[#This Row],[Товар]]&\",\",SEARCH(\",\",ТабЧастьНакладной[[#This Row],[Товар]]&\",\")-1)=LEFT(B28,SEARCH(\",\",B28&\",\")-1),\"\",SUMIF(ТабЧастьНакладной[Товар],LEFT(ТабЧастьНакладной[[#This Row],[Товар]],SEARCH(\",\",ТабЧастьНакладной[[#This Row],[Товар]]&\",\")-1)&\"*\",ТабЧастьНакладной[Кол-во, шт.])))","v":""},8,{"$f":"VLOOKUP(ТабЧастьНакладной[[#This Row],[Товар]],Модель!$E$3:$F$953,2,0)","v":360},{"$f":"ТабЧастьНакладной[[#This Row],[Кол-во, шт.]]*ТабЧастьНакладной[[#This Row],[Цена, руб.]]","v":2880}]
[{"$f":"ROW()-3","v":27},"Дерево туника, индиго, размер 44, Штрих-код 4650105277270",{"$f":"IF(ТабЧастьНакладной[[#This Row],[Товар]]=\"\",\"\",IF(LEFT(ТабЧастьНакладной[[#This Row],[Товар]]&\",\",SEARCH(\",\",ТабЧастьНакладной[[#This Row],[Товар]]&\",\")-1)=LEFT(B29,SEARCH(\",\",B29&\",\")-1),\"\",SUMIF(ТабЧастьНакладной[Товар],LEFT(ТабЧастьНакладной[[#This Row],[Товар]],SEARCH(\",\",ТабЧастьНакладной[[#This Row],[Товар]]&\",\")-1)&\"*\",ТабЧастьНакладной[Кол-во, шт.])))","v":""},9,{"$f":"VLOOKUP(ТабЧастьНакладной[[#This Row],[Товар]],Модель!$E$3:$F$953,2,0)","v":360},{"$f":"ТабЧастьНакладной[[#This Row],[Кол-во, шт.]]*ТабЧастьНакладной[[#This Row],[Цена, руб.]]","v":3240}]
[{"$f":"ROW()-3","v":28},"Дерево туника, индиго, размер 58, Штрих-код 4650105277348",{"$f":"IF(ТабЧастьНакладной[[#This Row],[Товар]]=\"\",\"\",IF(LEFT(ТабЧастьНакладной[[#This Row],[Товар]]&\",\",SEARCH(\",\",ТабЧастьНакладной[[#This Row],[Товар]]&\",\")-1)=LEFT(B30,SEARCH(\",\",B30&\",\")-1),\"\",SUMIF(ТабЧастьНакладной[Товар],LEFT(ТабЧастьНакладной[[#This Row],[Товар]],SEARCH(\",\",ТабЧастьНакладной[[#This Row],[Товар]]&\",\")-1)&\"*\",ТабЧастьНакладной[Кол-во, шт.])))","v":""},null,{"$f":"VLOOKUP(ТабЧастьНакладной[[#This Row],[Товар]],Модель!$E$3:$F$953,2,0)","v":360},{"$f":"ТабЧастьНакладной[[#This Row],[Кол-во, шт.]]*ТабЧастьНакладной[[#This Row],[Цена, руб.]]","v":0}]
[{"$f":"ROW()-3","v":29},"Дзен кофта",{"$f":"IF(ТабЧастьНакладной[[#This Row],[Товар]]=\"\",\"\",IF(LEFT(ТабЧастьНакладной[[#This Row],[Товар]]&\",\",SEARCH(\",\",ТабЧастьНакладной[[#This Row],[Товар]]&\",\")-1)=LEFT(B31,SEARCH(\",\",B31&\",\")-1),\"\",SUMIF(ТабЧастьНакладной[Товар],LEFT(ТабЧастьНакладной[[#This Row],[Товар]],SEARCH(\",\",ТабЧастьНакладной[[#This Row],[Товар]]&\",\")-1)&\"*\",ТабЧастьНакладной[Кол-во, шт.])))","v":21},null,{"$f":"VLOOKUP(ТабЧастьНакладной[[#This Row],[Товар]],Модель!$E$3:$F$953,2,0)","v":{"$error":"#N/A"}},{"$f":"ТабЧастьНакладной[[#This Row],[Кол-во, шт.]]*ТабЧастьНакладной[[#This Row],[Цена, руб.]]","v":{"$error":"#N/A"}}]
[{"$f":"ROW()-3","v":30},"Дзен кофта, меланж, размер 42. Штрих-код: 4650105137123",{"$f":"IF(ТабЧастьНакладной[[#This Row],[Товар]]=\"\",\"\",IF(LEFT(ТабЧастьНакладной[[#This Row],[Товар]]&\",\",SEARCH(\",\",ТабЧастьНакладной[[#This Row],[Товар]]&\",\")-1)=LEFT(B32,SEARCH(\",\",B32&\",\")-1),\"\",SUMIF(ТабЧастьНакладной[Товар],LEFT(ТабЧастьНакладной[[#This Row],[Товар]],SEARCH(\",\",ТабЧастьНакладной[[#This Row],[Товар]]&\",\")-1)&\"*\",ТабЧастьНакладной[Кол-во, шт.])))","v":""},null,{"$f":"VLOOKUP(ТабЧастьНакладной[[#This Row],[Товар]],Модель!$E$3:$F$953,2,0)","v":320},{"$f":"ТабЧастьНакладной[[#This Row],[Кол-во, шт.]]*ТабЧастьНакладной[[#This Row],[Цена, руб.]]","v":0}]
[{"$f":"ROW()-3","v":31},"Дзен кофта, меланж, размер 48. Штрих-код: 4650105137154",{"$f":"IF(ТабЧастьНакладной[[#This Row],[Товар]]=\"\",\"\",IF(LEFT(ТабЧастьНакладной[[#This Row],[Товар]]&\",\",SEARCH(\",\",ТабЧастьНакладной[[#This Row],[Товар]]&\",\")-1)=LEFT(B33,SEARCH(\",\",B33&\",\")-1),\"\",SUMIF(ТабЧастьНакладной[Товар],LEFT(ТабЧастьНакладной[[#This Row],[Товар]],SEARCH(\",\",ТабЧастьНакладной[[#This Row],[Товар]]&\",\")-1)&\"*\",ТабЧастьНакладной[Кол-во, шт.])))","v":""},8,{"$f":"VLOOKUP(ТабЧастьНакладной[[#This Row],[Товар]],Модель!$E$3:$F$953,2,0)","v":320},{"$f":"ТабЧастьНакладной[[#This Row],[Кол-во, шт.]]*ТабЧастьНакладной[[#This Row],[Цена, руб.]]","v":2560}]
[{"$f":"ROW()-3","v":32},"Дзен кофта, меланж, размер 50. Штрих-код: 4650105137161",{"$f":"IF(ТабЧастьНакладной[[#This Row],[Товар]]=\"\",\"\",IF(LEFT(ТабЧастьНакладной[[#This Row],[Товар]]&\",\",SEARCH(\",\",ТабЧастьНакладной[[#This Row],[Товар]]&\",\")-1)=LEFT(B34,SEARCH(\",\",B34&\",\")-1),\"\",SUMIF(ТабЧастьНакладной[Товар],LEFT(ТабЧастьНакладной[[#This Row],[Товар]],SEARCH(\",\",ТабЧастьНакладной[[#This Row],[Товар]]&\",\")-1)&\"*\",ТабЧастьНакладной[Кол-во, шт.])))","v":""},7,{"$f":"VLOOKUP(ТабЧастьНакладной[[#This Row],[Товар]],Модель!$E$3:$F$953,2,0)","v":320},{"$f":"ТабЧастьНакладной[[#This Row],[Кол-во, шт.]]*ТабЧастьНакладной[[#This Row],[Цена, руб.]]","v":2240}]
[{"$f":"ROW()-3","v":33},"Дзен кофта, меланж, размер 52. Штрих-код: 4650105137178",{"$f":"IF(ТабЧастьНакладной[[#This Row],[Товар]]=\"\",\"\",IF(LEFT(ТабЧастьНакладной[[#This Row],[Товар]]&\",\",SEARCH(\",\",ТабЧастьНакладной[[#This Row],[Товар]]&\",\")-1)=LEFT(B35,SEARCH(\",\",B35&\",\")-1),\"\",SUMIF(ТабЧастьНакладной[Товар],LEFT(ТабЧастьНакладной[[#This Row],[Товар]],SEARCH(\",\",ТабЧастьНакладной[[#This Row],[Товар]]&\",\")-1)&\"*\",ТабЧастьНакладной[Кол-во, шт.])))","v":""},6,{"$f":"VLOOKUP(ТабЧастьНакладной[[#This Row],[Товар]],Модель!$E$3:$F$953,2,0)","v":320},{"$f":"ТабЧастьНакладной[[#This Row],[Кол-во, шт.]]*ТабЧастьНакладной[[#This Row],[Цена, руб.]]","v":1920}]
[{"$f":"ROW()-3","v":34},"Дымка футболка",{"$f":"IF(ТабЧастьНакладной[[#This Row],[Товар]]=\"\",\"\",IF(LEFT(ТабЧастьНакладной[[#This Row],[Товар]]&\",\",SEARCH(\",\",ТабЧастьНакладной[[#This Row],[Товар]]&\",\")-1)=LEFT(B36,SEARCH(\",\",B36&\",\")-1),\"\",SUMIF(ТабЧастьНакладной[Товар],LEFT(ТабЧастьНакладной[[#This Row],[Товар]],SEARCH(\",\",ТабЧастьНакладной[[#This Row],[Товар]]&\",\")-1)&\"*\",ТабЧастьНакладной[Кол-во, шт.])))","v":12},null,{"$f":"VLOOKUP(ТабЧастьНакладной[[#This Row],[Товар]],Модель!$E$3:$F$953,2,0)","v":{"$error":"#N/A"}},{"$f":"ТабЧастьНакладной[[#This Row],[Кол-во, шт.]]*ТабЧастьНакладной[[#This Row],[Цена, руб.]]","v":{"$error":"#N/A"}}]
[{"$f":"ROW()-3","v":35},"Дымка футболка, белый, размер 44, Штрих-код 4650105315484",{"$f":"IF(ТабЧастьНакладной[[#This Row],[Товар]]=\"\",\"\",IF(LEFT(ТабЧастьНакладной[[#This Row],[Товар]]&\",\",SEARCH(\",\",ТабЧастьНакладной[[#This Row],[Товар]]&\",\")-1)=LEFT(B37,SEARCH(\",\",B37&\",\")-1),\"\",SUMIF(ТабЧастьНакладной[Товар],LEFT(ТабЧастьНакладной[[#This Row],[Товар]],SEARCH(\",\",ТабЧастьНакладной[[#This Row],[Товар]]&\",\")-1)&\"*\",ТабЧастьНакладной[Кол-во, шт.])))","v":""},5,{"$f":"VLOOKUP(ТабЧастьНакладной[[#This Row],[Товар]],Модель!$E$3:$F$953,2,0)","v":250},{"$f":"ТабЧастьНакладной[[#This Row],[Кол-во, шт.]]*ТабЧастьНакладной[[#This Row],[Цена, руб.]]","v":1250}]
[{"$f":"ROW()-3","v":36},"Дымка футболка, белый, размер 46, Штрих-код 4650105315491",{"$f":"IF(ТабЧастьНакладной[[#This Row],[Товар]]=\"\",\"\",IF(LEFT(ТабЧастьНакладной[[#This Row],[Товар]]&\",\",SEARCH(\",\",ТабЧастьНакладной[[#This Row],[Товар]]&\",\")-1)=LEFT(B38,SEARCH(\",\",B38&\",\")-1),\"\",SUMIF(ТабЧастьНакладной[Товар],LEFT(ТабЧастьНакладной[[#This Row],[Товар]],SEARCH(\",\",ТабЧастьНакладной[[#This Row],[Товар]]&\",\")-1)&\"*\",ТабЧастьНакладной[Кол-во, шт.])))","v":""},4,{"$f":"VLOOKUP(ТабЧастьНакладной[[#This Row],[Товар]],Модель!$E$3:$F$953,2,0)","v":250},{"$f":"ТабЧастьНакладной[[#This Row],[Кол-во, шт.]]*ТабЧастьНакладной[[#This Row],[Цена, руб.]]","v":1000}]
[{"$f":"ROW()-3","v":37},"Дымка футболка, белый, размер 48, Штрих-код 4650105315507",{"$f":"IF(ТабЧастьНакладной[[#This Row],[Товар]]=\"\",\"\",IF(LEFT(ТабЧастьНакладной[[#This Row],[Товар]]&\",\",SEARCH(\",\",ТабЧастьНакладной[[#This Row],[Товар]]&\",\")-1)=LEFT(B39,SEARCH(\",\",B39&\",\")-1),\"\",SUMIF(ТабЧастьНакладной[Товар],LEFT(ТабЧастьНакладной[[#This Row],[Товар]],SEARCH(\",\",ТабЧастьНакладной[[#This Row],[Товар]]&\",\")-1)&\"*\",ТабЧастьНакладной[Кол-во, шт.])))","v":""},3,{"$f":"VLOOKUP(ТабЧастьНакладной[[#This Row],[Товар]],Модель!$E$3:$F$953,2,0)","v":250},{"$f":"ТабЧастьНакладной[[#This Row],[Кол-во, шт.]]*ТабЧастьНакладной[[#This Row],[Цена, руб.]]","v":750}]
[{"$f":"ROW()-3","v":38},"Дымка футболка, белый, размер 58, Штрих-код 4650105315552",{"$f":"IF(ТабЧастьНакладной[[#This Row],[Товар]]=\"\",\"\",IF(LEFT(ТабЧастьНакладной[[#This Row],[Товар]]&\",\",SEARCH(\",\",ТабЧастьНакладной[[#This Row],[Товар]]&\",\")-1)=LEFT(B40,SEARCH(\",\",B40&\",\")-1),\"\",SUMIF(ТабЧастьНакладной[Товар],LEFT(ТабЧастьНакладной[[#This Row],[Товар]],SEARCH(\",\",ТабЧастьНакладной[[#This Row],[Товар]]&\",\")-1)&\"*\",ТабЧастьНакладной[Кол-во, шт.])))","v":""},null,{"$f":"VLOOKUP(ТабЧастьНакладной[[#This Row],[Товар]],Модель!$E$3:$F$953,2,0)","v":250},{"$f":"ТабЧастьНакладной[[#This Row],[Кол-во, шт.]]*ТабЧастьНакладной[[#This Row],[Цена, руб.]]","v":0}]
[{"$f":"ROW()-3","v":39},null,{"$f":"IF(ТабЧастьНакладной[[#This Row],[Товар]]=\"\",\"\",IF(LEFT(ТабЧастьНакладной[[#This Row],[Товар]]&\",\",SEARCH(\",\",ТабЧастьНакладной[[#This Row],[Товар]]&\",\")-1)=LEFT(B41,SEARCH(\",\",B41&\",\")-1),\"\",SUMIF(ТабЧастьНакладной[Товар],LEFT(ТабЧастьНакладной[[#This Row],[Товар]],SEARCH(\",\",ТабЧастьНакладной[[#This Row],[Товар]]&\",\")-1)&\"*\",ТабЧастьНакладной[Кол-во, шт.])))","v":""},null,{"$f":"VLOOKUP(ТабЧастьНакладной[[#This Row],[Товар]],Модель!$E$3:$F$953,2,0)","v":{"$error":"#N/A"}},{"$f":"ТабЧастьНакладной[[#This Row],[Кол-во, шт.]]*ТабЧастьНакладной[[#This Row],[Цена, руб.]]","v":{"$error":"#N/A"}}]
["Итог",null,null,null,null,{"$f":"SUMIF(ТабЧастьНакладной[Сумма, руб.],\"<1E100\")","v":371920}]
[null,null,null,"НДС не облагается"]
[{"$f":"\"Всего наименований:\"&\" \"&MAX(ТабЧастьНакладной[№ п/п])&\",\"&\" \"&\"на сумму\"&\" \"&СП&\" \"&\"руб.\"","v":"Всего наименований: 39, на сумму 371920 руб."}]
[{"$f":"SUBSTITUTE(PROPER(INDEX(n_4,MID(TEXT(СП,n0),1,1)+1)&INDEX(n0x,MID(TEXT(СП,n0),2,1)+1,MID(TEXT(СП,n0),3,1)+1)&IF(-MID(TEXT(СП,n0),1,3),\"миллиард\"&VLOOKUP(MID(TEXT(СП,n0),3,1)*AND(MID(TEXT(СП,n0),2,1)-1),мил,2),\"\")&INDEX(n_4,MID(TEXT(СП,n0),4,1)+1)&INDEX(n0x,MID(TEXT(СП,n0),5,1)+1,MID(TEXT(СП,n0),6,1)+1)&IF(-MID(TEXT(СП,n0),4,3),\"миллион\"&VLOOKUP(MID(TEXT(СП,n0),6,1)*AND(MID(TEXT(СП,n0),5,1)-1),мил,2),\"\")&INDEX(n_4,MID(TEXT(СП,n0),7,1)+1)&INDEX(n1x,MID(TEXT(СП,n0),8,1)+1,MID(TEXT(СП,n0),9,1)+1)&IF(-MID(TEXT(СП,n0),7,3),VLOOKUP(MID(TEXT(СП,n0),9,1)*AND(MID(TEXT(СП,n0),8,1)-1),тыс,2),\"\")&INDEX(n_4,MID(TEXT(СП,n0),10,1)+1)&INDEX(n0x,MID(TEXT(СП,n0),11,1)+1,MID(TEXT(СП,n0),12,1)+1)),\"z\",\" \")&IF(TRUNC(TEXT(СП,n0)),\"\",\"Ноль \")&\"рубл\"&VLOOKUP(MOD(MAX(MOD(MID(TEXT(СП,n0),11,2)-11,100),9),10),{0,\"ь \";1,\"я \";4,\"ей \"},2)&RIGHT(TEXT(СП,n0),2)&\" копе\"&VLOOKUP(MOD(MAX(MOD(RIGHT(TEXT(СП,n0),2)-11,100),9),10),{0,\"йка\";1,\"йки\";4,\"ек\"},2)","v":"Триста семьдесят одна тысяча девятьсот двадцать рублей 00 копеек"}]
[]
["Отпустил:__________________________",null,"Получил:_____________________"]

{"sheet":"Пример","index":1,"n_rows":40,"n_cols":5,"rows_kept":40,"cut":false,"hidden":false,"merged":[[0,0,0,1],[1,0,1,1]]}
["Поставщик:"]
["Покупатель:",null,null,"Дата:",{"$f":"TODAY()","v":"2019-09-19"}]
["№ п/п","                                                   aaaaТовар","Кол-во, шт.","Цена, руб.","Сумма, руб."]
[{"$f":"ROW()-3","v":1},"Грин костюм, графит, размер 42. Штрих-код 4650105044629",12,{"$f":"VLOOKUP(ТабЧастьНакладной5[[                                                   aaaaТовар]],Модель!$E$3:$F$953,2,0)","v":765},{"$f":"C4*D4","v":9180}]
[2,"Грин костюм, графит, размер 44. Штрих-код 4650105044636",14,{"$f":"VLOOKUP(ТабЧастьНакладной5[[                                                   aaaaТовар]],Модель!$E$3:$F$953,2,0)","v":765},10710]
[3,"Грин костюм, графит, размер 46. Штрих-код 4650105044643",23,{"$f":"VLOOKUP(ТабЧастьНакладной5[[                                                   aaaaТовар]],Модель!$E$3:$F$953,2,0)","v":765},17595]
[4,"Грин костюм, графит, размер 48. Штрих-код 4650105044650",45,{"$f":"VLOOKUP(ТабЧастьНакладной5[[                                                   aaaaТовар]],Модель!$E$3:$F$953,2,0)","v":765},34425]
[5,"Грин костюм, графит, размер 50. Штрих-код 4650105044667",67,{"$f":"VLOOKUP(ТабЧастьНакладной5[[                                                   aaaaТовар]],Модель!$E$3:$F$953,2,0)","v":765},51255]
[6,"Грин костюм, графит, размер 52. Штрих-код 4650105044674",65,{"$f":"VLOOKUP(ТабЧастьНакладной5[[                                                   aaaaТовар]],Модель!$E$3:$F$953,2,0)","v":765},49725]
[7,"Грин костюм, индиго, размер 42. Штрих-код:4650105044681",78,{"$f":"VLOOKUP(ТабЧастьНакладной5[[                                                   aaaaТовар]],Модель!$E$3:$F$953,2,0)","v":765},59670]
[8,"Грин костюм, индиго, размер 44. Штрих-код:4650105044698",23,{"$f":"VLOOKUP(ТабЧастьНакладной5[[                                                   aaaaТовар]],Модель!$E$3:$F$953,2,0)","v":765},17595]
[9,"Грин костюм, индиго, размер 46. Штрих-код:4650105044704",12,{"$f":"VLOOKUP(ТабЧастьНакладной5[[                                                   aaaaТовар]],Модель!$E$3:$F$953,2,0)","v":765},9180]
[10,"Грин костюм, индиго, размер 48. Штрих-код:4650105044711",34,{"$f":"VLOOKUP(ТабЧастьНакладной5[[                                                   aaaaТовар]],Модель!$E$3:$F$953,2,0)","v":765},26010]
[11,"Грин костюм, индиго, размер 50. Штрих-код:4650105044728",45,{"$f":"VLOOKUP(ТабЧастьНакладной5[[                                                   aaaaТовар]],Модель!$E$3:$F$953,2,0)","v":765},34425]
[12,"Грин костюм, индиго, размер 52. Штрих-код:4650105044735",32,{"$f":"VLOOKUP(ТабЧастьНакладной5[[                                                   aaaaТовар]],Модель!$E$3:$F$953,2,0)","v":765},24480]
[null,null,{"$f":"SUBTOTAL(109,C4:C15)","v":450},{"$f":"VLOOKUP(ТабЧастьНакладной5[[                                                   aaaaТовар]],Модель!$E$3:$F$953,2,0)","v":{"$error":"#N/A"}},{"$error":"#N/A"}]
[{"$f":"ROW()-3","v":14},"Дерево туника, графит, размер 44, Штрих-код 4650105277355",1,{"$f":"VLOOKUP(ТабЧастьНакладной5[[                                                   aaaaТовар]],Модель!$E$3:$F$953,2,0)","v":360},360]
[15,"Дерево туника, графит, размер 46, Штрих-код 4650105277362",2,{"$f":"VLOOKUP(ТабЧастьНакладной5[[                                                   aaaaТовар]],Модель!$E$3:$F$953,2,0)","v":360},720]
[16,"Дерево туника, графит, размер 48, Штрих-код 4650105277379",3,{"$f":"VLOOKUP(ТабЧастьНакладной5[[                                                   aaaaТовар]],Модель!$E$3:$F$953,2,0)","v":360},1080]
[17,"Дерево туника, графит, размер 50, Штрих-код 4650105277386",4,{"$f":"VLOOKUP(ТабЧастьНакладной5[[                                                   aaaaТовар]],Модель!$E$3:$F$953,2,0)","v":360},1440]
[18,"Дерево туника, графит, размер 52, Штрих-код 4650105277393",5,{"$f":"VLOOKUP(ТабЧастьНакладной5[[                                                   aaaaТовар]],Модель!$E$3:$F$953,2,0)","v":360},1800]
[19,"Дерево туника, графит, размер 54, Штрих-код 4650105277409",6,{"$f":"VLOOKUP(ТабЧастьНакладной5[[                                                   aaaaТовар]],Модель!$E$3:$F$953,2,0)","v":360},2160]
[20,"Дерево туника, графит, размер 56, Штрих-код 4650105277416",7,{"$f":"VLOOKUP(ТабЧастьНакладной5[[                                                   aaaaТовар]],Модель!$E$3:$F$953,2,0)","v":360},2520]
[21,"Дерево туника, графит, размер 58, Штрих-код 4650105277423",8,{"$f":"VLOOKUP(ТабЧастьНакладной5[[                                                   aaaaТовар]],Модель!$E$3:$F$953,2,0)","v":360},2880]
[22,"Дерево туника, индиго, размер 44, Штрих-код 4650105277270",9,{"$f":"VLOOKUP(ТабЧастьНакладной5[[                                                   aaaaТовар]],Модель!$E$3:$F$953,2,0)","v":360},3240]
[null,null,{"$f":"SUBTOTAL(109,C17:C25)","v":45}]
[{"$f":"ROW()-3","v":24},"Дзен кофта, меланж, размер 48. Штрих-код: 4650105137154",8,{"$f":"VLOOKUP(ТабЧастьНакладной5[[                                                   aaaaТовар]],Модель!$E$3:$F$953,2,0)","v":320},{"$f":"C27*D27","v":2560}]
[{"$f":"ROW()-3","v":25},"Дзен кофта, меланж, размер 50. Штрих-код: 4650105137161",7,{"$f":"VLOOKUP(ТабЧастьНакладной5[[                                                   aaaaТовар]],Модель!$E$3:$F$953,2,0)","v":320},2240]
[{"$f":"ROW()-3","v":26},"Дзен кофта, меланж, размер 52. Штрих-код: 4650105137178",6,{"$f":"VLOOKUP(ТабЧастьНакладной5[[                                                   aaaaТовар]],Модель!$E$3:$F$953,2,0)","v":320},1920]
[null,null,{"$f":"SUBTOTAL(109,C27:C29)","v":21},{"$f":"VLOOKUP(ТабЧастьНакладной5[[                                                   aaaaТовар]],Модель!$E$3:$F$953,2,0)","v":{"$error":"#N/A"}},{"$error":"#N/A"}]
[{"$f":"ROW()-3","v":28},"Дымка футболка, белый, размер 44, Штрих-код 4650105315484",5,{"$f":"VLOOKUP(ТабЧастьНакладной5[[                                                   aaaaТовар]],Модель!$E$3:$F$953,2,0)","v":250},1250]
[{"$f":"ROW()-3","v":29},"Дымка футболка, белый, размер 46, Штрих-код 4650105315491",4,{"$f":"VLOOKUP(ТабЧастьНакладной5[[                                                   aaaaТовар]],Модель!$E$3:$F$953,2,0)","v":250},1000]
[{"$f":"ROW()-3","v":30},"Дымка футболка, белый, размер 48, Штрих-код 4650105315507",3,{"$f":"VLOOKUP(ТабЧастьНакладной5[[                                                   aaaaТовар]],Модель!$E$3:$F$953,2,0)","v":250},750]
[null,null,{"$f":"SUBTOTAL(109,C31:C33)","v":12}]
["Итог",null,null,null,{"$f":"SUMIF(ТабЧастьНакладной5[Сумма, руб.],\"<1E100\")","v":370170}]
[null,null,null,"НДС не облагается"]
[{"$f":"\"Всего наименований:\"&\" \"&MAX(ТабЧастьНакладной5[№ п/п])&\",\"&\" \"&\"на сумму\"&\" \"&СП&\" \"&\"руб.\"","v":"Всего наименований: 30, на сумму 371920 руб."}]
[{"$f":"SUBSTITUTE(PROPER(INDEX(n_4,MID(TEXT(СП,n0),1,1)+1)&INDEX(n0x,MID(TEXT(СП,n0),2,1)+1,MID(TEXT(СП,n0),3,1)+1)&IF(-MID(TEXT(СП,n0),1,3),\"миллиард\"&VLOOKUP(MID(TEXT(СП,n0),3,1)*AND(MID(TEXT(СП,n0),2,1)-1),мил,2),\"\")&INDEX(n_4,MID(TEXT(СП,n0),4,1)+1)&INDEX(n0x,MID(TEXT(СП,n0),5,1)+1,MID(TEXT(СП,n0),6,1)+1)&IF(-MID(TEXT(СП,n0),4,3),\"миллион\"&VLOOKUP(MID(TEXT(СП,n0),6,1)*AND(MID(TEXT(СП,n0),5,1)-1),мил,2),\"\")&INDEX(n_4,MID(TEXT(СП,n0),7,1)+1)&INDEX(n1x,MID(TEXT(СП,n0),8,1)+1,MID(TEXT(СП,n0),9,1)+1)&IF(-MID(TEXT(СП,n0),7,3),VLOOKUP(MID(TEXT(СП,n0),9,1)*AND(MID(TEXT(СП,n0),8,1)-1),тыс,2),\"\")&INDEX(n_4,MID(TEXT(СП,n0),10,1)+1)&INDEX(n0x,MID(TEXT(СП,n0),11,1)+1,MID(TEXT(СП,n0),12,1)+1)),\"z\",\" \")&IF(TRUNC(TEXT(СП,n0)),\"\",\"Ноль \")&\"рубл\"&VLOOKUP(MOD(MAX(MOD(MID(TEXT(СП,n0),11,2)-11,100),9),10),{0,\"ь \";1,\"я \";4,\"ей \"},2)&RIGHT(TEXT(СП,n0),2)&\" копе\"&VLOOKUP(MOD(MAX(MOD(RIGHT(TEXT(СП,n0),2)-11,100),9),10),{0,\"йка\";1,\"йки\";4,\"ек\"},2)","v":"Триста семьдесят одна тысяча девятьсот двадцать рублей 00 копеек"}]
[]
["Отпустил:__________________________",null,"Получил:_____________________"]

{"sheet":"Модель","index":2,"n_rows":135,"n_cols":8,"rows_kept":135,"cut":false,"hidden":false,"merged":[]}
["Модель ","Цвет","Размер","Штрих-код","Товар","Цена",null,"Магазин"]
[]
["Брейк трико","черный",30,2000003750221,"Брейк трико, черный, размер 30, Штрих-код 2000003750221",250,null,"Покупатель:"]
["Брейк трико","черный",32,2000003750238,"Брейк трико, черный, размер 32, Штрих-код 2000003750238",250,null,"Покупатель:"]
["Брейк трико","черный",34,2000003750245,"Брейк трико, черный, размер 34, Штрих-код 2000003750245",250,null,"Покупатель:"]
["Брейк трико","черный",36,2000003750252,"Брейк трико, черный, размер 36, Штрих-код 2000003750252",250,null,"Покупатель:"]
["Брейк трико","черный",38,2000003750269,"Брейк трико, черный, размер 38, Штрих-код 2000003750269",250,null,"Покупатель:"]
["Брейк трико","черный",40,2000003750276,"Брейк трико, черный, размер 40, Штрих-код 2000003750276",250,null,"Покупатель:"]
["Брейк трико","черный",42,2000003750283,"Брейк трико, черный, размер 42, Штрих-код 2000003750283",250]
["Вуаль футболка","молочный",44,4650105315002,"Вуаль футболка, молочный, размер 44, Штрих-код 4650105315002",270]
["Вуаль футболка","молочный",46,4650105315019,"Вуаль футболка, молочный, размер 46, Штрих-код 4650105315019",270]
["Вуаль футболка","молочный",48,4650105315026,"Вуаль футболка, молочный, размер 48, Штрих-код 4650105315026",270]
["Вуаль футболка","молочный",50,4650105315033,"Вуаль футболка, молочный, размер 50, Штрих-код 4650105315033",270]
["Вуаль футболка","молочный",52,4650105315040,"Вуаль футболка, молочный, размер 52, Штрих-код 4650105315040",270]
["Вуаль футболка","молочный",54,4650105315057,"Вуаль футболка, молочный, размер 54, Штрих-код 4650105315057",270]
["Вуаль футболка","молочный",56,4650105315064,"Вуаль футболка, молочный, размер 56, Штрих-код 4650105315064",270]
["Вуаль футболка","молочный",58,4650105315071,"Вуаль футболка, молочный, размер 58, Штрих-код 4650105315071",270]
["Вуаль футболка","черный",44,4650105315088,"Вуаль футболка, черный, размер 44, Штрих-код 4650105315088",270]
["Вуаль футболка","черный",46,4650105315095,"Вуаль футболка, черный, размер 46, Штрих-код 4650105315095",270]
["Вуаль футболка","черный",48,4650105315101,"Вуаль футболка, черный, размер 48, Штрих-код 4650105315101",270]
["Вуаль футболка","черный",50,4650105315118,"Вуаль футболка, черный, размер 50, Штрих-код 4650105315118",270]
["Вуаль футболка","черный",52,4650105315125,"Вуаль футболка, черный, размер 52, Штрих-код 4650105315125",270]
["Вуаль футболка","черный",54,4650105315132,"Вуаль футболка, черный, размер 54, Штрих-код 4650105315132",270]
["Вуаль футболка","черный",56,4650105315149,"Вуаль футболка, черный, размер 56, Штрих-код 4650105315149",270]
["Вуаль футболка","черный",58,4650105315156,"Вуаль футболка, черный, размер 58, Штрих-код 4650105315156",270]
["Вэст футболка","бордовый",46,4650105293003,"Вэст футболка, бордовый, размер 46, Штрих-код 4650105293003",270]
["Вэст футболка","бордовый",48,4650105293010,"Вэст футболка, бордовый, размер 48, Штрих-код 4650105293010",270]
["Вэст футболка","бордовый",50,4650105293027,"Вэст футболка, бордовый, размер 50, Штрих-код 4650105293027",270]
["Вэст футболка","бордовый",52,4650105293034,"Вэст футболка, бордовый, размер 52, Штрих-код 4650105293034",270]
["Вэст футболка","бордовый",54,4650105293041,"Вэст футболка, бордовый, размер 54, Штрих-код 4650105293041",270]
["Вэст футболка","бордовый",56,4650105293058,"Вэст футболка, бордовый, размер 56, Штрих-код 4650105293058",270]
["Вэст футболка","бордовый",58,4650105293065,"Вэст футболка, бордовый, размер 58, Штрих-код 4650105293065",270]
["Вэст футболка","бордовый",60,4650105293072,"Вэст футболка, бордовый, размер 60, Штрих-код 4650105293072",270]
["Вэст футболка","бордовый",62,4650105293089,"Вэст футболка, бордовый, размер 62, Штрих-код 4650105293089",270]
["Вэст футболка","бордовый",64,4650105293096,"Вэст футболка, бордовый, размер 64, Штрих-код 4650105293096",270]
["Вэст футболка","темно-синий",46,4650105293102,"Вэст футболка, темно-синий, размер 46, Штрих-код 4650105293102",270]
["Вэст футболка","темно-синий",48,4650105293119,"Вэст футболка, темно-синий, размер 48, Штрих-код 4650105293119",270]
["Вэст футболка","темно-синий",50,4650105293126,"Вэст футболка, темно-синий, размер 50, Штрих-код 4650105293126",270]
["Вэст футболка","темно-синий",52,4650105293133,"Вэст футболка, темно-синий, размер 52, Штрих-код 4650105293133",270]
["Вэст футболка","темно-синий",54,4650105293140,"Вэст футболка, темно-синий, размер 54, Штрих-код 4650105293140",270]
["Вэст футболка","темно-синий",56,4650105293157,"Вэст футболка, темно-синий, размер 56, Штрих-код 4650105293157",270]
["Вэст футболка","темно-синий",58,4650105293164,"Вэст футболка, темно-синий, размер 58, Штрих-код 4650105293164",270]
["Вэст футболка","темно-синий",60,4650105293171,"Вэст футболка, темно-синий, размер 60, Штрих-код 4650105293171",270]
["Вэст футболка","темно-синий",62,4650105293188,"Вэст футболка, темно-синий, размер 62, Штрих-код 4650105293188",270]
["Вэст футболка","темно-синий",64,4650105293195,"Вэст футболка, темно-синий, размер 64, Штрих-код 4650105293195",270]
["Грин костюм","графит",42,4650105044629,"Грин костюм, графит, размер 42. Штрих-код 4650105044629",765]
["Грин костюм","графит",44,4650105044636,"Грин костюм, графит, размер 44. Штрих-код 4650105044636",765]
["Грин костюм","графит",46,4650105044643,"Грин костюм, графит, размер 46. Штрих-код 4650105044643",765]
["Грин костюм","графит",48,4650105044650,"Грин костюм, графит, размер 48. Штрих-код 4650105044650",765]
["Грин костюм","графит",50,4650105044667,"Грин костюм, графит, размер 50. Штрих-код 4650105044667",765]
["Грин костюм","графит",52,4650105044674,"Грин костюм, графит, размер 52. Штрих-код 4650105044674",765]
["Грин костюм","индиго",42,4650105044681,"Грин костюм, индиго, размер 42. Штрих-код:4650105044681",765]
["Грин костюм","индиго",44,4650105044698,"Грин костюм, индиго, размер 44. Штрих-код:4650105044698",765]
["Грин костюм","индиго",46,4650105044704,"Грин костюм, индиго, размер 46. Штрих-код:4650105044704",765]
["Грин костюм","индиго",48,4650105044711,"Грин костюм, индиго, размер 48. Штрих-код:4650105044711",765]
["Грин костюм","индиго",50,4650105044728,"Грин костюм, индиго, размер 50. Штрих-код:4650105044728",765]
["Грин костюм","индиго",52,4650105044735,"Грин костюм, индиго, размер 52. Штрих-код:4650105044735",765]
["Дерево туника","графит",44,4650105277355,"Дерево туника, графит, размер 44, Штрих-код 4650105277355",360]
["Дерево туника","графит",46,4650105277362,"Дерево туника, графит, размер 46, Штрих-код 4650105277362",360]
["Дерево туника","графит",48,4650105277379,"Дерево туника, графит, размер 48, Штрих-код 4650105277379",360]
["Дерево туника","графит",50,4650105277386,"Дерево туника, графит, размер 50, Штрих-код 4650105277386",360]
["Дерево туника","графит",52,4650105277393,"Дерево туника, графит, размер 52, Штрих-код 4650105277393",360]
["Дерево туника","графит",54,4650105277409,"Дерево туника, графит, размер 54, Штрих-код 4650105277409",360]
["Дерево туника","графит",56,4650105277416,"Дерево туника, графит, размер 56, Штрих-код 4650105277416",360]
["Дерево туника","графит",58,4650105277423,"Дерево туника, графит, размер 58, Штрих-код 4650105277423",360]
["Дерево туника","индиго",44,4650105277270,"Дерево туника, индиго, размер 44, Штрих-код 4650105277270",360]
["Дерево туника","индиго",46,4650105277287,"Дерево туника, индиго, размер 46, Штрих-код 4650105277287",360]
["Дерево туника","индиго",48,4650105277294,"Дерево туника, индиго, размер 48, Штрих-код 4650105277294",360]
["Дерево туника","индиго",50,4650105277300,"Дерево туника, индиго, размер 50, Штрих-код 4650105277300",360]
["Дерево туника","индиго",52,4650105277317,"Дерево туника, индиго, размер 52, Штрих-код 4650105277317",360]
["Дерево туника","индиго",54,4650105277324,"Дерево туника, индиго, размер 54, Штрих-код 4650105277324",360]
["Дерево туника","индиго",56,4650105277331,"Дерево туника, индиго, размер 56, Штрих-код 4650105277331",360]
["Дерево туника","индиго",58,4650105277348,"Дерево туника, индиго, размер 58, Штрих-код 4650105277348",360]
["Дзен кофта","меланж",42,4650105137123,"Дзен кофта, меланж, размер 42. Штрих-код: 4650105137123",320]
["Дзен кофта","меланж",44,4650105137130,"Дзен кофта, меланж, размер 44. Штрих-код: 4650105137130",320]
["Дзен кофта","меланж",46,4650105137147,"Дзен кофта, меланж, размер 46. Штрих-код: 4650105137147",320]
["Дзен кофта","меланж",48,4650105137154,"Дзен кофта, меланж, размер 48. Штрих-код: 4650105137154",320]
["Дзен кофта","меланж",50,4650105137161,"Дзен кофта, меланж, размер 50. Штрих-код: 4650105137161",320]
["Дзен кофта","меланж",52,4650105137178,"Дзен кофта, меланж, размер 52. Штрих-код: 4650105137178",320]
["Дымка футболка","белый",44,4650105315484,"Дымка футболка, белый, размер 44, Штрих-код 4650105315484",250]
["Дымка футболка","белый",46,4650105315491,"Дымка футболка, белый, размер 46, Штрих-код 4650105315491",250]
["Дымка футболка","белый",48,4650105315507,"Дымка футболка, белый, размер 48, Штрих-код 4650105315507",250]
["Дымка футболка","белый",50,4650105315514,"Дымка футболка, белый, размер 50, Штрих-код 4650105315514",250]
["Дымка футболка","белый",52,4650105315521,"Дымка футболка, белый, размер 52, Штрих-код 4650105315521",250]
["Дымка футболка","белый",54,4650105315538,"Дымка футболка, белый, размер 54, Штрих-код 4650105315538",250]
["Дымка футболка","белый",56,4650105315545,"Дымка футболка, белый, размер 56, Штрих-код 4650105315545",250]
["Дымка футболка","белый",58,4650105315552,"Дымка футболка, белый, размер 58, Штрих-код 4650105315552",250]
["Дымка футболка","меланж",44,4650105315569,"Дымка футболка, меланж, размер 44, Штрих-код 4650105315569",250]
["Дымка футболка","меланж",46,4650105315576,"Дымка футболка, меланж, размер 46, Штрих-код 4650105315576",250]
["Дымка футболка","меланж",48,4650105315583,"Дымка футболка, меланж, размер 48, Штрих-код 4650105315583",250]
["Дымка футболка","меланж",50,4650105315590,"Дымка футболка, меланж, размер 50, Штрих-код 4650105315590",250]
["Дымка футболка","меланж",52,4650105315606,"Дымка футболка, меланж, размер 52, Штрих-код 4650105315606",250]
["Дымка футболка","меланж",54,4650105315613,"Дымка футболка, меланж, размер 54, Штрих-код 4650105315613",250]
["Дымка футболка","меланж",56,4650105315620,"Дымка футболка, меланж, размер 56, Штрих-код 4650105315620",250]
["Дымка футболка","меланж",58,4650105315637,"Дымка футболка, меланж, размер 58, Штрих-код 4650105315637",250]
["Зигзаг футболка","белый",44,4650105315248,"Зигзаг футболка, белый, размер 44, Штрих-код 4650105315248",250]
["Зигзаг футболка","белый",46,4650105315255,"Зигзаг футболка, белый, размер 46, Штрих-код 4650105315255",250]
["Зигзаг футболка","белый",48,4650105315262,"Зигзаг футболка, белый, размер 48, Штрих-код 4650105315262",250]
["Зигзаг футболка","белый",50,4650105315279,"Зигзаг футболка, белый, размер 50, Штрих-код 4650105315279",250]
["Зигзаг футболка","белый",52,4650105315286,"Зигзаг футболка, белый, размер 52, Штрих-код 4650105315286",250]
["Зигзаг футболка","белый",54,4650105315293,"Зигзаг футболка, белый, размер 54, Штрих-код 4650105315293",250]
["Зигзаг футболка","белый",56,4650105315309,"Зигзаг футболка, белый, размер 56, Штрих-код 4650105315309",250]
["Зигзаг футболка","белый",58,4650105315316,"Зигзаг футболка, белый, размер 58, Штрих-код 4650105315316",250]
["Зигзаг футболка","меланж",44,4650105315323,"Зигзаг футболка, меланж, размер 44, Штрих-код 4650105315323",250]
["Зигзаг футболка","меланж",46,4650105315330,"Зигзаг футболка, меланж, размер 46, Штрих-код 4650105315330",250]
["Зигзаг футболка","меланж",48,4650105315347,"Зигзаг футболка, меланж, размер 48, Штрих-код 4650105315347",250]
["Зигзаг футболка","меланж",50,4650105315354,"Зигзаг футболка, меланж, размер 50, Штрих-код 4650105315354",250]
["Зигзаг футболка","меланж",52,4650105315361,"Зигзаг футболка, меланж, размер 52, Штрих-код 4650105315361",250]
["Зигзаг футболка","меланж",54,4650105315378,"Зигзаг футболка, меланж, размер 54, Штрих-код 4650105315378",250]
["Зигзаг футболка","меланж",56,4650105315385,"Зигзаг футболка, меланж, размер 56, Штрих-код 4650105315385",250]
["Зигзаг футболка","меланж",58,4650105315392,"Зигзаг футболка, меланж, размер 58, Штрих-код 4650105315392",250]
["Турист трико","черный",44,2000003724437,"Турист трико, черный, размер 44, Штрих-код 2000003724437",380]
["Турист трико","черный",46,2000003724444,"Турист трико, черный, размер 46, Штрих-код 2000003724444",380]
["Турист трико","черный",48,2000003724451,"Турист трико, черный, размер 48, Штрих-код 2000003724451",380]
["Турист трико","черный",50,2000003724468,"Турист трико, черный, размер 50, Штрих-код 2000003724468",380]
["Турист трико","черный",52,2000003724475,"Турист трико, черный, размер 52, Штрих-код 2000003724475",380]
["Турист трико","черный",54,2000003724482,"Турист трико, черный, размер 54, Штрих-код 2000003724482",380]
["Турист трико","черный",56,2000003724499,"Турист трико, черный, размер 56, Штрих-код 2000003724499",380]
["Турист трико","черный",58,2000003724505,"Турист трико, черный, размер 58, Штрих-код 2000003724505",380]
["Дзен кофта","меланж",44,4650105276976,"Хава кофта, меланж, размер 44. Штрих-код: 4650105276976",380]
["Хава кофта","меланж",46,4650105276983,"Хава кофта, меланж, размер 46. Штрих-код: 4650105276983 ",380]
["Хава кофта","меланж",48,4650105276990,"Хава кофта, меланж, размер 48. Штрих-код: 4650105276990",380]
["Хава кофта","меланж",50,4650105277003,"Хава кофта, меланж, размер 50. Штрих-код: 4650105277003",380]
["Хава кофта","меланж",52,4650105277010,"Хава кофта, меланж, размер 52. Штрих-код: 4650105277010",380]
["Хава кофта","меланж",54,4650105277027,"Хава кофта, меланж, размер 54. Штрих-код: 4650105277027",380]
["Хава кофта","меланж",56,4650105277034,"Хава кофта, меланж, размер 56. Штрих-код: 4650105277034",380]
["Хава кофта","меланж",58,4650105277041,"Хава кофта, меланж, размер 58. Штрих код: 4650105277041",380]
["Хава кофта","темно-синий",44,4650105333099,"Хава кофта, темно-синий, размер 44. Штрих код: 4650105333099",380]
["Хава кофта","темно-синий",46,4650105333105,"Хава кофта, темно-синий, размер 46. Штрих код: 4650105333105",380]
["Хава кофта","темно-синий",48,4650105333112,"Хава кофта, темно-синий, размер 48. Штрих код: 4650105333112",380]
["Хава кофта","темно-синий",50,4650105333129,"Хава кофта, темно-синий, размер 50. Штрих-код: 4650105333129",380]
["Хава кофта","темно-синий",52,4650105333136,"Хава кофта, темно-синий, размер 52. Штрих-код: 4650105333136",380]
["Хава кофта","темно-синий",54,4650105333143,"Хава кофта, темно-синий, размер 54. Штрих-код: 4650105333143",380]
["Хава кофта","темно-синий",56,4650105333150,"Хава кофта, темно-синий, размер 56. Штрих код: 4650105333150",380]
["Хава кофта","темно-синий",58,4650105333167,"Хава кофта, темно-синий, размер 58. Штрих-код: 4650105333167",380]